[Event "Early-Titled-Tuesday-Blitz-April-02-2024"]
[Site "Chess.com"]
[Date "2024.04.02"]
[Round "10"]
[White "ATM622"]
[Black "lefonghua"]
[Result "0-1"]
[WhiteElo "2512"]
[BlackElo "2618"]
[TimeControl "180+1"]
[EndTime "9:58:03 PDT"]
[Termination "lefonghua won by checkmate"]

1. d4 {[%clk 0:03:00.9]} 1... Nf6 {[%clk 0:02:57.4]} 2. c4 {[%clk 0:03:01.1]}
2... c5 {[%clk 0:02:57.7]} 3. d5 {[%clk 0:03:01.2]} 3... e6 {[%clk 0:02:58.3]}
4. Nc3 {[%clk 0:03:01.1]} 4... exd5 {[%clk 0:02:58.9]} 5. cxd5 {[%clk 0:03:02]}
5... d6 {[%clk 0:02:59.6]} 6. g3 {[%clk 0:03:02]} 6... g6 {[%clk 0:03:00]} 7.
Bg2 {[%clk 0:03:02.2]} 7... Bg7 {[%clk 0:03:00.8]} 8. Nf3 {[%clk 0:03:02.5]}
8... O-O {[%clk 0:03:01.5]} 9. O-O {[%clk 0:03:02.8]} 9... a6 {[%clk 0:03:02.2]}
10. a4 {[%clk 0:03:03]} 10... Re8 {[%clk 0:03:02.9]} 11. Nd2 {[%clk 0:03:03.1]}
11... Nbd7 {[%clk 0:03:01.1]} 12. Nc4 {[%clk 0:03:03.3]} 12... Ne5 {[%clk
0:02:59.2]} 13. Nxe5 {[%clk 0:03:03.4]} 13... Rxe5 {[%clk 0:02:59]} 14. e4
{[%clk 0:03:03.7]} 14... Re8 {[%clk 0:02:58.1]} 15. Re1 {[%clk 0:03:03.6]} 15...
Rb8 {[%clk 0:02:56.4]} 16. a5 {[%clk 0:03:02.7]} 16... b5 {[%clk 0:02:53]} 17.
axb6 {[%clk 0:03:03.6]} 17... Rxb6 {[%clk 0:02:52.6]} 18. h3 {[%clk 0:02:57]}
18... Nd7 {[%clk 0:02:50]} 19. Na4 {[%clk 0:02:55.3]} 19... Rb4 {[%clk
0:02:48.8]} 20. Bd2 {[%clk 0:02:51.9]} 20... Rb8 {[%clk 0:02:45.8]} 21. Qc2
{[%clk 0:02:46.3]} 21... h5 {[%clk 0:02:11.6]} 22. Rab1 {[%clk 0:02:36.7]} 22...
h4 {[%clk 0:02:07.2]} 23. g4 {[%clk 0:02:33]} 23... a5 {[%clk 0:01:59.8]} 24.
Bc3 {[%clk 0:02:18.8]} 24... Bf6 {[%clk 0:01:39.9]} 25. Qd2 {[%clk 0:02:14.4]}
25... Rb4 {[%clk 0:01:36.7]} 26. Bxb4 {[%clk 0:01:52.5]} 26... axb4 {[%clk
0:01:36.6]} 27. b3 {[%clk 0:01:52.3]} 27... Bd4 {[%clk 0:01:31.5]} 28. Qf4
{[%clk 0:01:42.5]} 28... Qe7 {[%clk 0:01:26.9]} 29. Rbd1 {[%clk 0:01:39.3]}
29... g5 {[%clk 0:01:25.3]} 30. Qc1 {[%clk 0:01:33.1]} 30... Ne5 {[%clk
0:01:24.8]} 31. Rxd4 {[%clk 0:01:23]} 31... cxd4 {[%clk 0:01:24.9]} 32. Qd2
{[%clk 0:01:22.5]} 32... Qf6 {[%clk 0:01:12.6]} 33. Rc1 {[%clk 0:01:10.7]} 33...
Bd7 {[%clk 0:01:09.4]} 34. Nb6 {[%clk 0:01:08.7]} 34... Bb5 {[%clk 0:00:52.7]}
35. Rd1 {[%clk 0:01:05.8]} 35... Rb8 {[%clk 0:00:45.8]} 36. Qxd4 {[%clk
0:00:52.3]} 36... Be2 {[%clk 0:00:45.7]} 37. Rd2 {[%clk 0:00:46.1]} 37... Bf3
{[%clk 0:00:46.1]} 38. Nd7 {[%clk 0:00:37.7]} 38... Nxd7 {[%clk 0:00:40]} 39.
Qxf6 {[%clk 0:00:36.7]} 39... Nxf6 {[%clk 0:00:40.9]} 40. Bxf3 {[%clk
0:00:37.2]} 40... Rc8 {[%clk 0:00:40.5]} 41. Kg2 {[%clk 0:00:30.3]} 41... Nd7
{[%clk 0:00:38.4]} 42. Rd4 {[%clk 0:00:27.8]} 42... Rb8 {[%clk 0:00:27.1]} 43.
Be2 {[%clk 0:00:27.1]} 43... Nc5 {[%clk 0:00:25.7]} 44. Bc4 {[%clk 0:00:26.4]}
44... f6 {[%clk 0:00:24.1]} 45. Rd1 {[%clk 0:00:24.7]} 45... Ra8 {[%clk
0:00:23.9]} 46. Kf3 {[%clk 0:00:18.4]} 46... Ra3 {[%clk 0:00:21]} 47. Rb1 {[%clk
0:00:18.5]} 47... Ra2 {[%clk 0:00:21.1]} 48. Ke3 {[%clk 0:00:18.3]} 48... Kf7
{[%clk 0:00:19.6]} 49. Rf1 {[%clk 0:00:14]} 49... Rb2 {[%clk 0:00:18.6]} 50. f4
{[%clk 0:00:13.7]} 50... gxf4+ {[%clk 0:00:17.3]} 51. Rxf4 {[%clk 0:00:13.4]}
51... Kg6 {[%clk 0:00:17.4]} 52. Rf1 {[%clk 0:00:05.3]} 52... Nxb3 {[%clk
0:00:17.2]} 53. Rd1 {[%clk 0:00:04.6]} 53... Nc5 {[%clk 0:00:16.4]} 54. Rg1
{[%clk 0:00:02.7]} 54... Rh2 {[%clk 0:00:15.2]} 55. Kd4 {[%clk 0:00:01.9]} 55...
Rxh3 {[%clk 0:00:15.4]} 56. g5 {[%clk 0:00:02.2]} 56... fxg5 {[%clk 0:00:15.5]}
57. Bb5 {[%clk 0:00:02.4]} 57... b3 {[%clk 0:00:14]} 58. Be8+ {[%clk 0:00:01.8]}
58... Kf6 {[%clk 0:00:13.9]} 59. Bb5 {[%clk 0:00:02.7]} 59... b2 {[%clk
0:00:13.9]} 60. Rf1+ {[%clk 0:00:03]} 60... Ke7 {[%clk 0:00:13.7]} 61. Bc4
{[%clk 0:00:02.3]} 61... Nb3+ {[%clk 0:00:12.7]} 62. Bxb3 {[%clk 0:00:02.6]}
62... Rxb3 {[%clk 0:00:13.6]} 63. Rb1 {[%clk 0:00:03.2]} 63... h3 {[%clk
0:00:13.6]} 64. Kc4 {[%clk 0:00:03.8]} 64... Rb8 {[%clk 0:00:13.6]} 65. Kc3
{[%clk 0:00:03.8]} 65... h2 {[%clk 0:00:13.9]} 66. Kc2 {[%clk 0:00:03.8]} 66...
Kf6 {[%clk 0:00:12.7]} 67. Rf1+ {[%clk 0:00:03.3]} 67... Ke5 {[%clk 0:00:13.2]}
68. Kb1 {[%clk 0:00:03.7]} 68... Kxe4 {[%clk 0:00:13]} 69. Re1+ {[%clk
0:00:03.6]} 69... Kxd5 {[%clk 0:00:13.4]} 70. Rd1+ {[%clk 0:00:04]} 70... Ke5
{[%clk 0:00:14]} 71. Rh1 {[%clk 0:00:04.1]} 71... g4 {[%clk 0:00:12.6]} 72. Rxh2
{[%clk 0:00:04.2]} 72... g3 {[%clk 0:00:13.3]} 73. Rh4 {[%clk 0:00:03]} 73...
Kf5 {[%clk 0:00:13.3]} 74. Rh5+ {[%clk 0:00:02]} 74... Kf4 {[%clk 0:00:13.1]}
75. Rh7 {[%clk 0:00:02.9]} 75... g2 {[%clk 0:00:13.2]} 76. Rf7+ {[%clk
0:00:02.9]} 76... Kg3 {[%clk 0:00:13.4]} 77. Rg7+ {[%clk 0:00:03]} 77... Kf2
{[%clk 0:00:14]} 78. Rf7+ {[%clk 0:00:03.3]} 78... Kg1 {[%clk 0:00:14.4]} 79.
Rg7 {[%clk 0:00:02.1]} 79... Rf8 {[%clk 0:00:14.3]} 80. Rg6 {[%clk 0:00:01.4]}
80... Kf2 {[%clk 0:00:14.4]} 81. Kxb2 {[%clk 0:00:01.7]} 81... g1=Q {[%clk
0:00:14.7]} 82. Rxd6 {[%clk 0:00:01.7]} 82... Qg3 {[%clk 0:00:14.3]} 83. Rd2+
{[%clk 0:00:01.2]} 83... Ke3 {[%clk 0:00:14.3]} 84. Rc2 {[%clk 0:00:01.3]} 84...
Qe5+ {[%clk 0:00:14.6]} 85. Kc1 {[%clk 0:00:01.1]} 85... Rf1# {[%clk 0:00:13.8]}
0-1

[Event "Early-Titled-Tuesday-Blitz-April-02-2024"]
[Site "Chess.com"]
[Date "2024.04.02"]
[Round "10"]
[White "sathvikadiga"]
[Black "ChristianArca"]
[Result "1/2-1/2"]
[WhiteElo "2579"]
[BlackElo "2667"]
[TimeControl "180+1"]
[EndTime "9:58:29 PDT"]
[Termination "Game drawn by stalemate"]

1. e4 {[%clk 0:03:00.9]} 1... c6 {[%clk 0:03:00.1]} 2. d4 {[%clk 0:03:00.4]}
2... d5 {[%clk 0:03:01]} 3. Nc3 {[%clk 0:03:01]} 3... dxe4 {[%clk 0:03:01.5]} 4.
Nxe4 {[%clk 0:03:01.8]} 4... Bf5 {[%clk 0:03:02.4]} 5. Ng3 {[%clk 0:03:02]} 5...
Bg6 {[%clk 0:03:03.1]} 6. h4 {[%clk 0:03:02.4]} 6... h6 {[%clk 0:03:03.3]} 7.
Nf3 {[%clk 0:03:03.1]} 7... Nd7 {[%clk 0:03:03.2]} 8. h5 {[%clk 0:03:03]} 8...
Bh7 {[%clk 0:03:03.9]} 9. Bd3 {[%clk 0:03:03.6]} 9... Bxd3 {[%clk 0:03:04.6]}
10. Qxd3 {[%clk 0:03:04.5]} 10... e6 {[%clk 0:03:05.5]} 11. Bd2 {[%clk
0:03:04.8]} 11... Ngf6 {[%clk 0:03:06.2]} 12. O-O-O {[%clk 0:03:05.3]} 12... Be7
{[%clk 0:03:07.1]} 13. Kb1 {[%clk 0:03:05.7]} 13... O-O {[%clk 0:03:07.6]} 14.
Ne4 {[%clk 0:03:06.2]} 14... Nxe4 {[%clk 0:03:08.3]} 15. Qxe4 {[%clk 0:03:06.9]}
15... Nf6 {[%clk 0:03:09.2]} 16. Qe2 {[%clk 0:03:07.5]} 16... Qd5 {[%clk
0:03:10]} 17. Ne5 {[%clk 0:03:07.9]} 17... Qe4 {[%clk 0:03:10.3]} 18. Qxe4
{[%clk 0:03:08.5]} 18... Nxe4 {[%clk 0:03:11.2]} 19. Be1 {[%clk 0:03:09.1]}
19... Rfd8 {[%clk 0:03:11.5]} 20. f3 {[%clk 0:03:09.6]} 20... Nd6 {[%clk
0:03:11.6]} 21. g4 {[%clk 0:03:07.8]} 21... Bf6 {[%clk 0:03:12]} 22. Bf2 {[%clk
0:03:07.8]} 22... Bxe5 {[%clk 0:03:09.8]} 23. dxe5 {[%clk 0:03:08.7]} 23... Nc4
{[%clk 0:03:10.7]} 24. f4 {[%clk 0:03:08]} 24... b6 {[%clk 0:03:05.8]} 25. Kc1
{[%clk 0:03:04.7]} 25... Kf8 {[%clk 0:03:02.6]} 26. b3 {[%clk 0:03:02.2]} 26...
Na5 {[%clk 0:03:01]} 27. Bh4 {[%clk 0:03:02.4]} 27... Rxd1+ {[%clk 0:02:55.1]}
28. Rxd1 {[%clk 0:03:03.3]} 28... Ke8 {[%clk 0:02:54.3]} 29. f5 {[%clk
0:03:03.7]} 29... c5 {[%clk 0:02:49.8]} 30. f6 {[%clk 0:02:49.9]} 30... gxf6
{[%clk 0:02:36.7]} 31. Bxf6 {[%clk 0:02:49.4]} 31... Nc6 {[%clk 0:02:35.1]} 32.
g5 {[%clk 0:02:47.4]} 32... Kf8 {[%clk 0:02:26.7]} 33. g6 {[%clk 0:01:50.2]}
33... fxg6 {[%clk 0:02:24]} 34. hxg6 {[%clk 0:01:51.1]} 34... Ne7 {[%clk
0:02:21.2]} 35. g7+ {[%clk 0:01:50.5]} 35... Kf7 {[%clk 0:02:21]} 36. Rd7 {[%clk
0:01:50.6]} 36... Re8 {[%clk 0:02:17]} 37. Rxe7+ {[%clk 0:01:46.1]} 37... Rxe7
{[%clk 0:02:15.9]} 38. Bxe7 {[%clk 0:01:46.6]} 38... Kxg7 {[%clk 0:02:13.1]} 39.
Bf6+ {[%clk 0:01:47]} 39... Kg6 {[%clk 0:02:12.8]} 40. Kd2 {[%clk 0:01:47.7]}
40... Kf5 {[%clk 0:02:12.2]} 41. Ke3 {[%clk 0:01:48.2]} 41... Kg4 {[%clk
0:02:11.8]} 42. c4 {[%clk 0:01:39.5]} 42... Kg3 {[%clk 0:02:07.8]} 43. Ke2
{[%clk 0:01:22.5]} 43... h5 {[%clk 0:02:05.1]} 44. Kf1 {[%clk 0:01:21.4]} 44...
Kf3 {[%clk 0:01:57.6]} 45. a3 {[%clk 0:01:05.5]} 45... Ke3 {[%clk 0:01:52.2]}
46. Be7 {[%clk 0:01:01.1]} 46... Kd4 {[%clk 0:01:50.2]} 47. b4 {[%clk
0:00:25.2]} 47... cxb4 {[%clk 0:01:41.1]} 48. axb4 {[%clk 0:00:19.7]} 48... Kxc4
{[%clk 0:01:41.4]} 49. Kg2 {[%clk 0:00:19.9]} 49... a5 {[%clk 0:01:10.9]} 50.
bxa5 {[%clk 0:00:20.8]} 50... bxa5 {[%clk 0:01:11.8]} 51. Kg3 {[%clk 0:00:21]}
51... a4 {[%clk 0:01:01.4]} 52. Kf3 {[%clk 0:00:17.1]} 52... Kb3 {[%clk
0:00:56.9]} 53. Kf4 {[%clk 0:00:17.3]} 53... a3 {[%clk 0:00:53.8]} 54. Bxa3
{[%clk 0:00:17]} 54... Kxa3 {[%clk 0:00:54.7]} 55. Kg5 {[%clk 0:00:16.5]} 55...
Kb3 {[%clk 0:00:55.2]} 56. Kxh5 {[%clk 0:00:08.6]} 56... Kc4 {[%clk 0:00:55.1]}
57. Kg4 {[%clk 0:00:07.8]} 57... Kd5 {[%clk 0:00:55.1]} 58. Kf4 {[%clk
0:00:08.4]} 58... Kc4 {[%clk 0:00:50.4]} 59. Kf3 {[%clk 0:00:09.3]} 59... Kd3
{[%clk 0:00:49.6]} 60. Kf4 {[%clk 0:00:08.9]} 60... Kc3 {[%clk 0:00:44.6]} 61.
Kf3 {[%clk 0:00:09.8]} 61... Kd4 {[%clk 0:00:36.4]} 62. Kf4 {[%clk 0:00:10.7]}
62... Kc5 {[%clk 0:00:37]} 63. Kg5 {[%clk 0:00:08.5]} 63... Kc6 {[%clk 0:00:35]}
64. Kf4 {[%clk 0:00:05.5]} 64... Kd5 {[%clk 0:00:35.5]} 65. Kf3 {[%clk
0:00:05.3]} 65... Kc5 {[%clk 0:00:34.9]} 66. Kf4 {[%clk 0:00:04.7]} 66... Kb4
{[%clk 0:00:34.2]} 67. Kg5 {[%clk 0:00:03.4]} 67... Kc4 {[%clk 0:00:34.6]} 68.
Kf4 {[%clk 0:00:03.3]} 68... Kd3 {[%clk 0:00:34.3]} 69. Kf3 {[%clk 0:00:03.2]}
69... Kd2 {[%clk 0:00:34.8]} 70. Kf4 {[%clk 0:00:04.1]} 70... Kd3 {[%clk
0:00:33.5]} 71. Kf3 {[%clk 0:00:04.5]} 71... Kc3 {[%clk 0:00:32.9]} 72. Kf4
{[%clk 0:00:03.8]} 72... Kd4 {[%clk 0:00:33.8]} 73. Kf3 {[%clk 0:00:03.9]} 73...
Kxe5 {[%clk 0:00:34.7]} 74. Ke3 {[%clk 0:00:04.2]} 74... Kd5 {[%clk 0:00:35.4]}
75. Kd3 {[%clk 0:00:04.6]} 75... Ke5 {[%clk 0:00:35.1]} 76. Ke3 {[%clk
0:00:04.9]} 76... Kf5 {[%clk 0:00:36]} 77. Kf3 {[%clk 0:00:05.4]} 77... e5
{[%clk 0:00:35.8]} 78. Ke3 {[%clk 0:00:05.9]} 78... e4 {[%clk 0:00:36.2]} 79.
Ke2 {[%clk 0:00:06.4]} 79... Ke5 {[%clk 0:00:36.7]} 80. Ke3 {[%clk 0:00:06.7]}
80... Kd5 {[%clk 0:00:37.6]} 81. Ke2 {[%clk 0:00:07.2]} 81... Kd4 {[%clk
0:00:38.5]} 82. Kd2 {[%clk 0:00:07.7]} 82... Kc5 {[%clk 0:00:39.2]} 83. Ke3
{[%clk 0:00:08.1]} 83... Kd5 {[%clk 0:00:39.3]} 84. Ke2 {[%clk 0:00:08.8]} 84...
Kd4 {[%clk 0:00:40.2]} 85. Kd2 {[%clk 0:00:09.4]} 85... e3+ {[%clk 0:00:41.1]}
86. Ke2 {[%clk 0:00:08.9]} 86... Ke4 {[%clk 0:00:42]} 87. Ke1 {[%clk 0:00:09.4]}
87... Kd4 {[%clk 0:00:42.5]} 88. Ke2 {[%clk 0:00:09.5]} 88... Ke4 {[%clk
0:00:43]} 89. Ke1 {[%clk 0:00:09.9]} 89... Kf3 {[%clk 0:00:43.6]} 90. Kf1 {[%clk
0:00:09.9]} 90... Ke4 {[%clk 0:00:44.5]} 91. Ke2 {[%clk 0:00:08.4]} 91... Kd4
{[%clk 0:00:44.9]} 92. Ke1 {[%clk 0:00:09.1]} 92... Kd3 {[%clk 0:00:45.8]} 93.
Kd1 {[%clk 0:00:09.3]} 93... e2+ {[%clk 0:00:46.7]} 94. Ke1 {[%clk 0:00:09.8]}
94... Ke3 {[%clk 0:00:47.6]} 1/2-1/2

[Event "Early-Titled-Tuesday-Blitz-April-02-2024"]
[Site "Chess.com"]
[Date "2024.04.02"]
[Round "10"]
[White "kleber2007"]
[Black "IMRosen"]
[Result "0-1"]
[WhiteElo "2460"]
[BlackElo "2656"]
[TimeControl "180+1"]
[EndTime "9:58:45 PDT"]
[Termination "IMRosen won on time"]

1. d4 {[%clk 0:03:00.9]} 1... d5 {[%clk 0:02:59.4]} 2. c4 {[%clk 0:03:00.7]}
2... e6 {[%clk 0:02:59.2]} 3. Nf3 {[%clk 0:03:00.2]} 3... Nf6 {[%clk 0:02:59.6]}
4. Nc3 {[%clk 0:03:00.2]} 4... Nbd7 {[%clk 0:03:00]} 5. Bf4 {[%clk 0:02:59]}
5... Bb4 {[%clk 0:02:58.6]} 6. e3 {[%clk 0:02:55]} 6... c5 {[%clk 0:02:57.3]} 7.
dxc5 {[%clk 0:02:53]} 7... Qa5 {[%clk 0:02:49.7]} 8. Qc2 {[%clk 0:02:51.3]} 8...
Ne4 {[%clk 0:02:45.8]} 9. Rc1 {[%clk 0:02:50.6]} 9... Ndxc5 {[%clk 0:02:45.9]}
10. cxd5 {[%clk 0:02:47.3]} 10... exd5 {[%clk 0:02:34.7]} 11. Bd3 {[%clk
0:02:37]} 11... Bf5 {[%clk 0:02:19.1]} 12. O-O {[%clk 0:02:00.9]} 12... Bxc3
{[%clk 0:01:43.6]} 13. bxc3 {[%clk 0:01:58.2]} 13... Nxd3 {[%clk 0:01:43.9]} 14.
Qxd3 {[%clk 0:01:58.2]} 14... Ng3 {[%clk 0:01:42]} 15. Qd2 {[%clk 0:01:49.9]}
15... Nxf1 {[%clk 0:01:37.1]} 16. Kxf1 {[%clk 0:01:48.2]} 16... O-O {[%clk
0:01:35.5]} 17. Nd4 {[%clk 0:01:45.6]} 17... Bg6 {[%clk 0:01:31.5]} 18. Nb3
{[%clk 0:01:29.8]} 18... Qb5+ {[%clk 0:01:28.1]} 19. Kg1 {[%clk 0:01:30.2]}
19... Rac8 {[%clk 0:01:28.5]} 20. Be5 {[%clk 0:01:30.1]} 20... f6 {[%clk
0:01:25.7]} 21. Bd4 {[%clk 0:01:29.7]} 21... b6 {[%clk 0:01:26.4]} 22. Qb2
{[%clk 0:01:26.7]} 22... a5 {[%clk 0:01:23.5]} 23. Qa3 {[%clk 0:01:25.6]} 23...
a4 {[%clk 0:01:12]} 24. Nd2 {[%clk 0:01:25.3]} 24... Qe2 {[%clk 0:01:12.6]} 25.
Nf3 {[%clk 0:01:22.2]} 25... Be4 {[%clk 0:01:12.5]} 26. Re1 {[%clk 0:01:16.3]}
26... Qc2 {[%clk 0:01:03.3]} 27. Rc1 {[%clk 0:01:15.8]} 27... Qe2 {[%clk
0:00:58.4]} 28. Re1 {[%clk 0:01:15.7]} 28... Qb5 {[%clk 0:00:59.2]} 29. Nd2
{[%clk 0:01:09.6]} 29... Rfe8 {[%clk 0:00:50.5]} 30. Nxe4 {[%clk 0:01:06.9]}
30... dxe4 {[%clk 0:00:48.3]} 31. g3 {[%clk 0:01:05.2]} 31... Rc6 {[%clk
0:00:34.8]} 32. Qc1 {[%clk 0:01:04.4]} 32... h5 {[%clk 0:00:29]} 33. h4 {[%clk
0:01:03.3]} 33... Kh7 {[%clk 0:00:21.1]} 34. Qb1 {[%clk 0:01:01.6]} 34... Qxb1
{[%clk 0:00:18.9]} 35. Rxb1 {[%clk 0:01:02.5]} 35... Rb8 {[%clk 0:00:18.8]} 36.
Rb5 {[%clk 0:01:01.6]} 36... Kg6 {[%clk 0:00:16.6]} 37. Kg2 {[%clk 0:01:01.2]}
37... Kh6 {[%clk 0:00:12.8]} 38. Kh3 {[%clk 0:01:00.5]} 38... g6 {[%clk
0:00:13.2]} 39. g4 {[%clk 0:01:00.1]} 39... hxg4+ {[%clk 0:00:13]} 40. Kxg4
{[%clk 0:01:01]} 40... f5+ {[%clk 0:00:13.7]} 41. Kg3 {[%clk 0:01:01]} 41... Kh7
{[%clk 0:00:13.3]} 42. a3 {[%clk 0:00:56.3]} 42... Rbc8 {[%clk 0:00:13.2]} 43.
Rd5 {[%clk 0:00:55.5]} 43... R8c7 {[%clk 0:00:10.9]} 44. Kf4 {[%clk 0:00:54.8]}
44... Kh6 {[%clk 0:00:08.9]} 45. Rd8 {[%clk 0:00:54.3]} 45... Rb7 {[%clk
0:00:06.2]} 46. Rh8+ {[%clk 0:00:49.7]} 46... Rh7 {[%clk 0:00:06.7]} 47. Ra8
{[%clk 0:00:49.9]} 47... Kh5 {[%clk 0:00:06.9]} 48. Kg3 {[%clk 0:00:47.2]} 48...
g5 {[%clk 0:00:06.4]} 49. hxg5 {[%clk 0:00:45.5]} 49... Kxg5 {[%clk 0:00:07.3]}
50. Rxa4 {[%clk 0:00:38.7]} 50... f4+ {[%clk 0:00:06.2]} 51. exf4+ {[%clk
0:00:37.5]} 51... Kf5 {[%clk 0:00:06.9]} 52. f3 {[%clk 0:00:30.4]} 52... Rg6+
{[%clk 0:00:06.3]} 53. Kf2 {[%clk 0:00:30.6]} 53... Rh2+ {[%clk 0:00:06.2]} 54.
Ke3 {[%clk 0:00:31]} 54... exf3 {[%clk 0:00:03.4]} 55. Kxf3 {[%clk 0:00:26]}
55... Rh3+ {[%clk 0:00:03.4]} 56. Kf2 {[%clk 0:00:21.3]} 56... Rh2+ {[%clk
0:00:04]} 57. Kf3 {[%clk 0:00:21.4]} 57... Rh3+ {[%clk 0:00:04.7]} 58. Kf2
{[%clk 0:00:21.6]} 58... Rgh6 {[%clk 0:00:04]} 59. Ra8 {[%clk 0:00:19.2]} 59...
Rh2+ {[%clk 0:00:04.2]} 60. Kf1 {[%clk 0:00:18.1]} 60... Ke4 {[%clk 0:00:04.1]}
61. Bg1 {[%clk 0:00:16]} 61... Ra2 {[%clk 0:00:03.7]} 62. Re8+ {[%clk
0:00:13.4]} 62... Kf3 {[%clk 0:00:04.2]} 63. Re3+ {[%clk 0:00:13.6]} 63... Kxf4
{[%clk 0:00:04.8]} 64. Rd3 {[%clk 0:00:12.5]} 64... Kg4 {[%clk 0:00:04.7]} 65.
Be3 {[%clk 0:00:11.9]} 65... Rf6+ {[%clk 0:00:04.5]} 66. Ke1 {[%clk 0:00:09.8]}
66... Re6 {[%clk 0:00:04.5]} 67. Kf1 {[%clk 0:00:08]} 67... Kf5 {[%clk
0:00:04.2]} 68. Rd2 {[%clk 0:00:07.1]} 68... Rxd2 {[%clk 0:00:02.6]} 69. Bxd2
{[%clk 0:00:06.8]} 69... Re4 {[%clk 0:00:02.9]} 70. Bc1 {[%clk 0:00:05.3]} 70...
Ke6 {[%clk 0:00:03.3]} 71. Kf2 {[%clk 0:00:05.2]} 71... Kd5 {[%clk 0:00:03.8]}
72. Kf3 {[%clk 0:00:05.4]} 72... Re1 {[%clk 0:00:04.3]} 73. Be3 {[%clk
0:00:05.4]} 73... Rb1 {[%clk 0:00:03.8]} 74. Bd4 {[%clk 0:00:04.5]} 74... Kc4
{[%clk 0:00:03.9]} 75. Ke3 {[%clk 0:00:04.7]} 75... b5 {[%clk 0:00:04.3]} 76.
Ke4 {[%clk 0:00:04.8]} 76... Ra1 {[%clk 0:00:04.8]} 77. Ke5 {[%clk 0:00:04.5]}
77... Rxa3 {[%clk 0:00:05.3]} 78. Ke4 {[%clk 0:00:05]} 78... Ra8 {[%clk
0:00:05.3]} 79. Be5 {[%clk 0:00:05.4]} 79... Re8 {[%clk 0:00:05.3]} 80. Kf5
{[%clk 0:00:05.8]} 80... Kd5 {[%clk 0:00:05.3]} 81. Bf6 {[%clk 0:00:05.1]} 81...
Rf8 {[%clk 0:00:04.9]} 82. Kg6 {[%clk 0:00:04.2]} 82... Ke6 {[%clk 0:00:05.5]}
83. Bd4 {[%clk 0:00:04]} 83... Rf3 {[%clk 0:00:05.7]} 84. Kg5 {[%clk 0:00:03.7]}
84... Kd5 {[%clk 0:00:05.5]} 85. Bf6 {[%clk 0:00:03.4]} 85... Ke4 {[%clk
0:00:05.5]} 86. Bh8 {[%clk 0:00:02.9]} 86... Kd5 {[%clk 0:00:05.1]} 87. Kg4
{[%clk 0:00:03]} 87... Rf7 {[%clk 0:00:04.4]} 88. Kg3 {[%clk 0:00:02.2]} 88...
Kc4 {[%clk 0:00:04.8]} 89. Kg4 {[%clk 0:00:01.9]} 89... Rf1 {[%clk 0:00:04.3]}
90. Kg3 {[%clk 0:00:01.9]} 90... Rc1 {[%clk 0:00:04.6]} 91. Kf3 {[%clk
0:00:01.6]} 91... Rxc3+ {[%clk 0:00:05.3]} 92. Ke2 {[%clk 0:00:01.9]} 92... Rd3
{[%clk 0:00:05]} 93. Bg7 {[%clk 0:00:01.7]} 93... Rd5 {[%clk 0:00:05.5]} 94. Bf8
{[%clk 0:00:01.8]} 94... b4 {[%clk 0:00:05.8]} 95. Ke3 {[%clk 0:00:02.7]} 95...
b3 {[%clk 0:00:06]} 96. Ba3 {[%clk 0:00:03.2]} 96... Rd3+ {[%clk 0:00:06.2]} 97.
Ke2 {[%clk 0:00:02.9]} 97... Kc3 {[%clk 0:00:06.6]} 98. Be7 {[%clk 0:00:02]}
98... Kc2 {[%clk 0:00:06.4]} 99. Bf6 {[%clk 0:00:02.9]} 99... Rd7 {[%clk
0:00:06.4]} 100. Bg7 {[%clk 0:00:02.7]} 100... Rxg7 {[%clk 0:00:05.4]} 0-1

[Event "Early-Titled-Tuesday-Blitz-April-02-2024"]
[Site "Chess.com"]
[Date "2024.04.02"]
[Round "11"]
[White "m_ezat"]
[Black "yaguigor"]
[Result "1-0"]
[WhiteElo "2560"]
[BlackElo "2626"]
[TimeControl "180+1"]
[EndTime "10:03:56 PDT"]
[Termination "m_ezat won by resignation"]

1. d4 {[%clk 0:02:59.6]} 1... d5 {[%clk 0:02:58.2]} 2. c4 {[%clk 0:02:59.7]}
2... c6 {[%clk 0:02:57.9]} 3. Nc3 {[%clk 0:02:59.8]} 3... Nf6 {[%clk 0:02:58.1]}
4. cxd5 {[%clk 0:03:00.3]} 4... cxd5 {[%clk 0:02:57.8]} 5. Bf4 {[%clk
0:03:00.5]} 5... Nc6 {[%clk 0:02:57.5]} 6. e3 {[%clk 0:03:00.7]} 6... Bf5 {[%clk
0:02:56.4]} 7. Qb3 {[%clk 0:02:57.6]} 7... Na5 {[%clk 0:02:55.1]} 8. Qa4+ {[%clk
0:02:56.5]} 8... Bd7 {[%clk 0:02:54.3]} 9. Qc2 {[%clk 0:02:56.9]} 9... e6 {[%clk
0:02:50.9]} 10. Bd3 {[%clk 0:02:56.6]} 10... Rc8 {[%clk 0:02:50.2]} 11. Nf3
{[%clk 0:02:55.6]} 11... Bb4 {[%clk 0:02:49.7]} 12. O-O {[%clk 0:02:54.6]} 12...
Nh5 {[%clk 0:02:25.8]} 13. Be5 {[%clk 0:02:51.1]} 13... f6 {[%clk 0:02:25.3]}
14. Bg3 {[%clk 0:02:49.8]} 14... f5 {[%clk 0:02:24.7]} 15. Be5 {[%clk
0:02:44.9]} 15... O-O {[%clk 0:02:20.7]} 16. Rac1 {[%clk 0:02:40.4]} 16... Nf6
{[%clk 0:02:14.1]} 17. Qe2 {[%clk 0:02:35.2]} 17... Bxc3 {[%clk 0:02:13]} 18.
bxc3 {[%clk 0:02:34.5]} 18... Ne4 {[%clk 0:02:08.1]} 19. h3 {[%clk 0:02:31.4]}
19... Nxc3 {[%clk 0:01:56.4]} 20. Qb2 {[%clk 0:02:27.7]} 20... Ne4 {[%clk
0:01:55.8]} 21. Qb4 {[%clk 0:02:22.3]} 21... Rc2 {[%clk 0:01:42.4]} 22. Rxc2
{[%clk 0:01:49.5]} 1-0

[Event "Early-Titled-Tuesday-Blitz-April-02-2024"]
[Site "Chess.com"]
[Date "2024.04.02"]
[Round "11"]
[White "campochess"]
[Black "kai_nov"]
[Result "1-0"]
[WhiteElo "2183"]
[BlackElo "2292"]
[TimeControl "180+1"]
[EndTime "10:04:00 PDT"]
[Termination "campochess won by checkmate"]

1. e4 {[%clk 0:02:59.8]} 1... c5 {[%clk 0:02:58.8]} 2. b4 {[%clk 0:02:59.1]}
2... cxb4 {[%clk 0:02:57.9]} 3. d4 {[%clk 0:02:59.3]} 3... d5 {[%clk 0:02:55.3]}
4. exd5 {[%clk 0:02:59.4]} 4... Qxd5 {[%clk 0:02:55.3]} 5. c4 {[%clk 0:02:59.6]}
5... bxc3 {[%clk 0:02:54.5]} 6. Nxc3 {[%clk 0:02:59.6]} 6... Qa5 {[%clk
0:02:54.6]} 7. Bd2 {[%clk 0:02:59.2]} 7... Qd8 {[%clk 0:02:53.3]} 8. Nf3 {[%clk
0:02:57]} 8... Nf6 {[%clk 0:02:53]} 9. Bc4 {[%clk 0:02:56.6]} 9... Bg4 {[%clk
0:02:52.5]} 10. Qb3 {[%clk 0:02:55.3]} 10... e6 {[%clk 0:02:49.8]} 11. Qxb7
{[%clk 0:02:50.1]} 11... Nbd7 {[%clk 0:02:48.9]} 12. Ne5 {[%clk 0:02:47.8]}
12... Rb8 {[%clk 0:02:40.6]} 13. Qa6 {[%clk 0:02:46.8]} 13... Rb6 {[%clk
0:02:35.3]} 14. Qxa7 {[%clk 0:02:38.2]} 14... Nxe5 {[%clk 0:02:30.7]} 15. dxe5
{[%clk 0:02:36.8]} 15... Ne4 {[%clk 0:02:29]} 16. Nxe4 {[%clk 0:02:30.4]} 16...
Qd4 {[%clk 0:02:15.5]} 17. Qa4+ {[%clk 0:02:26]} 17... Kd8 {[%clk 0:02:02.7]}
18. Qa8+ {[%clk 0:02:18.5]} 18... Kc7 {[%clk 0:01:59.5]} 19. Rc1 {[%clk
0:02:16.8]} 19... Rb8 {[%clk 0:01:51.2]} 20. Ba5+ {[%clk 0:02:13.7]} 20... Kd7
{[%clk 0:01:45.1]} 21. Qxb8 {[%clk 0:02:12.7]} 21... Qxe4+ {[%clk 0:01:44.1]}
22. Kf1 {[%clk 0:02:06.8]} 22... Ba3 {[%clk 0:01:37.2]} 23. Bb5+ {[%clk
0:02:01.2]} 23... Ke7 {[%clk 0:01:22.5]} 24. Rc7# {[%clk 0:02:00.9]} 1-0